fUST/lending_fUST_20251020
["ID","MTS","AMOUNT","RATE_DAILY","PERIOD"]
[391879866,1760949048871,-151.0,0.00025671,7]
[391879867,1760949048881,-151.0,0.00025671,7]
[391879868,1760949048890,-151.0,0.00025671,7]
[391879869,1760949048900,-153.008453,0.00025671,7]
[391879870,1760949048909,-151.0,0.00025671,7]
[391879871,1760949048918,-151.0,0.00025671,7]
[391879872,1760949048928,-151.0,0.00025671,7]
[391879873,1760949048937,-164.507625,0.00025671,7]
[391879874,1760949048946,-163.487828,0.00025671,7]
[391879875,1760949048955,-1047.404148,0.00025671,7]
[391879876,1760949048965,-151.0,0.00025671,7]
[391879877,1760949048974,-1047.404148,0.00025671,7]
[391879878,1760949048983,-1047.404148,0.00025671,7]
[391879879,1760949048992,-1047.404148,0.00025671,7]
[391879880,1760949049001,-182.270219,0.00025671,7]
[391879881,1760949049010,-182.270219,0.00025671,7]
[391879882,1760949049020,-151.0,0.00025671,7]
[391879883,1760949049033,-182.270219,0.00025671,7]
[391879884,1760949049042,-151.0,0.00025671,7]
[391879885,1760949049051,-182.270219,0.00025671,7]
[391879886,1760949049061,-194.920634,0.00025671,7]
[391879887,1760949049070,-194.920634,0.00025671,7]
[391879888,1760949049080,-151.0,0.00025671,7]
[391879889,1760949049089,-194.920634,0.00025671,7]
[391879890,1760949049098,-152.199679,0.00025671,7]
[391879891,1760949049108,-194.920634,0.00025671,7]
[391879892,1760949049117,-151.0,0.00025671,7]
[391879893,1760949049126,-248.481148,0.00025671,7]
[391879894,1760949049136,-248.481148,0.00025671,7]
[391879895,1760949049145,-248.481148,0.00025671,7]
[391879896,1760949049155,-248.481148,0.00025671,7]
[391879897,1760949049165,-1500.0,0.00025671,28]
[391879898,1760949049176,-1500.0,0.00025671,28]
[391879899,1760949049186,-1500.0,0.00025671,28]
[391879900,1760949049195,-1500.0,0.00025671,28]
[391879901,1760949049205,-1500.0,0.00025671,28]
[391879902,1760949049215,-1500.0,0.00025671,28]
[391879903,1760949049225,-585.69069,0.00025671,28]
[391879904,1760949049234,-370000.0,0.00025671,2]
[391879905,1760949049243,-152.75385122,0.00025673,2]
[391879906,1760949049253,-150.0,0.00025673,2]
[391879907,1760949049263,-150.0,0.00025673,2]
[391879908,1760949049272,-736.0,0.00025674,3]
[391879909,1760949049282,-500.0,0.00025674,3]
[391879910,1760949049291,-151.0,0.000257,12]
[391879911,1760949049300,-151.0,0.000257,11]
[391879912,1760949049309,-151.0,0.000257,16]
[391879913,1760949049318,-500.0,0.00025714,2]
[391879914,1760949049327,-736.0,0.00025729,3]
[391879915,1760949049336,-500.0,0.00025729,3]
[391879916,1760949049346,-178.09666574,0.00025738,2]
[391879917,1760949049355,-371.5,0.00025742,2]
[391879918,1760949049365,-448.37878269,0.00025746,2]
[391879919,1760949049374,-199.0,0.00025753,9]
[391879920,1760949049384,-193.88748167,0.00025764,2]
[391879921,1760949049393,-348.99746701,0.00025764,2]
[391879922,1760949049403,-151.0,0.00025768,2]
[391879923,1760949049412,-151.0,0.00025768,2]
[391879924,1760949049422,-500.0,0.00025768,2]
[391879925,1760949049432,-500.0,0.00025768,2]
[391879926,1760949049441,-152.89452512,0.00025771,2]
[391879927,1760949049451,-210.63753227,0.00025771,2]
[391879928,1760949049460,-153.71087954,0.00025771,2]
[391879929,1760949049470,-736.0,0.00025784,3]
[391879930,1760949049479,-500.0,0.00025784,3]
[391879931,1760949049488,-151.0,0.000258,12]
[391879932,1760949049497,-151.0,0.000258,11]
[391879933,1760949049507,-151.0,0.000258,19]
[391879934,1760949049517,-246.74534427,0.00025823,2]
[391879935,1760949049526,-500.0,0.00025823,2]
[391879936,1760949049535,-500.0,0.00025823,2]
[391879937,1760949049544,-8132.90257182,0.00025825,2]
[391879938,1760949049554,-8132.90257182,0.00025835,2]
[391879939,1760949049563,-736.0,0.00025839,3]
[391879940,1760949049572,-500.0,0.00025839,3]
[391879941,1760949049582,-151.0,0.00025845,2]
[391879942,1760949049591,-151.0,0.00025845,7]
[391879943,1760949049600,-151.0,0.00025845,7]
[391879944,1760949049610,-151.0,0.00025845,7]
[391879945,1760949049623,-151.0,0.00025845,7]
[391879946,1760949049632,-151.0,0.00025845,7]
[391879947,1760949049642,-151.0,0.00025845,7]
[391879948,1760949049651,-151.0,0.00025845,7]
[391879949,1760949049660,-151.0,0.00025845,7]
[391879950,1760949049669,-151.0,0.00025845,7]
[391879951,1760949049679,-156.985828,0.00025845,7]
[391879952,1760949049689,-156.985828,0.00025845,7]
[391879953,1760949049699,-151.0,0.00025845,7]
[391879954,1760949049708,-156.985828,0.00025845,7]
[391879955,1760949049717,-151.0,0.00025845,7]
[391879956,1760949049726,-156.985828,0.00025845,7]
[391879957,1760949049735,-151.0,0.00025845,7]
[391879958,1760949049744,-151.0,0.00025845,7]
[391879959,1760949049754,-151.0,0.00025845,7]
[391879960,1760949049764,-463.223978,0.00025845,7]
[391879961,1760949049774,-417.059582,0.00025845,7]
[391879962,1760949049784,-463.223978,0.00025845,7]
[391879963,1760949049793,-417.059582,0.00025845,7]
[391879964,1760949049803,-463.223978,0.00025845,7]
[391879965,1760949049813,-151.0,0.00025845,7]
[391879966,1760949049826,-417.059582,0.00025845,7]
[391879967,1760949049843,-463.223978,0.00025845,7]
[391879968,1760949049861,-417.059582,0.00025845,7]
[391879969,1760949049871,-151.0,0.00025845,7]
[391879970,1760949049881,-155.877407,0.00025845,7]
[391879971,1760949049891,-151.0,0.00025845,7]
[391879972,1760949049900,-151.0,0.00025845,7]
[391879973,1760949049910,-151.0,0.00025845,7]
[391879974,1760949049919,-151.0,0.00025845,7]
[391879975,1760949049931,-151.0,0.00025845,7]
[391879976,1760949049940,-151.0,0.00025845,7]
[391879977,1760949049951,-151.0,0.00025845,7]
[391879978,1760949049960,-151.0,0.00025845,7]
[391879979,1760949049969,-1047.404148,0.00025845,7]
[391879980,1760949049979,-151.0,0.00025845,7]
[391879981,1760949049988,-1047.404148,0.00025845,7]
[391879982,1760949049998,-1047.404148,0.00025845,7]
[391879983,1760949050007,-1047.404139,0.00025845,7]
[391879984,1760949050017,-182.270219,0.00025845,7]
[391879985,1760949050031,-182.270219,0.00025845,7]
[391879986,1760949050042,-151.0,0.00025845,7]
[391879987,1760949050051,-182.270219,0.00025845,7]
[391879988,1760949050061,-151.0,0.00025845,7]
[391879989,1760949050071,-182.270212,0.00025845,7]
[391879990,1760949050080,-194.920634,0.00025845,7]
[391879991,1760949050091,-194.920634,0.00025845,7]
[391879992,1760949050100,-194.920634,0.00025845,7]
[391879993,1760949050111,-151.0,0.00025845,7]
[391879994,1760949050121,-194.92063,0.00025845,7]
[391879995,1760949050131,-151.0,0.00025845,7]
[391879996,1760949050141,-248.481148,0.00025845,7]
[391879997,1760949050150,-248.481148,0.00025845,7]
[391879998,1760949050160,-248.481148,0.00025845,7]
[391879999,1760949050169,-248.481142,0.00025845,7]
[391880000,1760949050181,-309.258701,0.00025846,7]
[391880001,1760949050191,-309.258701,0.00025846,7]
[391880002,1760949050200,-309.258701,0.00025846,7]
[391880003,1760949050209,-151.0,0.00025846,7]
[391880004,1760949050218,-309.258701,0.00025846,7]
[391880005,1760949050228,-151.0,0.00025846,7]
[391880006,1760949050237,-151.0,0.00025846,7]
[391880007,1760949050247,-151.0,0.00025846,7]
[391880008,1760949050256,-151.0,0.00025846,7]
[391880009,1760949050266,-400.517066,0.00025846,7]
[391880010,1760949050275,-400.517066,0.00025846,7]
[391880011,1760949050284,-400.517066,0.00025846,7]
[391880012,1760949050293,-479.884686,0.00025846,7]
[391880013,1760949050302,-400.517066,0.00025846,7]
[391880014,1760949050311,-151.0,0.00025846,7]
[391880015,1760949050320,-479.884686,0.00025846,7]
[391880016,1760949050329,-151.0,0.00025846,7]
[391880017,1760949050339,-479.884686,0.00025846,7]
[391880018,1760949050348,-479.884686,0.00025846,7]
[391880019,1760949050357,-151.0,0.00025846,7]
[391880020,1760949050367,-151.0,0.00025846,7]
[391880021,1760949050376,-287.618802,0.00025846,7]
[391880022,1760949050385,-151.0,0.00025846,7]
[391880023,1760949050395,-151.0,0.00025846,7]
[391880024,1760949050495,-152.517226,0.00025846,7]
[391880025,1760949050504,-151.0,0.00025846,7]
[391880026,1760949050513,-151.0,0.00025846,7]
[391880027,1760949050522,-151.0,0.00025846,7]
[391880028,1760949050531,-151.0,0.00025846,7]
[391880029,1760949050541,-151.0,0.00025846,7]
[391880030,1760949050551,-152.605077,0.00025846,7]
[391880031,1760949050560,-156.985828,0.00025846,7]
[391880032,1760949050569,-156.985828,0.00025846,7]
[391880033,1760949050578,-151.0,0.00025846,7]
[391880034,1760949050587,-156.985828,0.00025846,7]
[391880035,1760949050597,-151.0,0.00025846,7]
[391880036,1760949050606,-156.985828,0.00025846,7]
[391880037,1760949050615,-151.0,0.00025846,7]
[391880038,1760949050624,-151.0,0.00025846,7]
[391880039,1760949050634,-151.0,0.00025846,7]
[391880040,1760949050643,-463.223978,0.00025846,7]
[391880041,1760949050652,-417.059582,0.00025846,7]
[391880042,1760949050662,-463.223978,0.00025846,7]
[391880043,1760949050671,-417.059582,0.00025846,7]
[391880044,1760949050682,-463.223978,0.00025846,7]
[391880045,1760949050691,-152.424338,0.00025846,7]
[391880046,1760949050701,-417.059582,0.00025846,7]
[391880047,1760949050710,-463.223978,0.00025846,7]
[391880048,1760949050719,-417.059582,0.00025846,7]
[391880049,1760949050728,-151.0,0.00025846,7]
[391880050,1760949050737,-151.0,0.00025846,7]
[391880051,1760949050746,-620.772078,0.00025846,7]
[391880052,1760949050755,-620.772078,0.00025846,7]
[391880053,1760949050764,-620.772078,0.00025846,7]
[391880054,1760949050774,-620.772078,0.00025846,7]
[391880055,1760949050783,-151.0,0.00025846,7]
[391880056,1760949050792,-151.0,0.00025846,7]
[391880057,1760949050801,-151.0,0.00025846,7]
[391880058,1760949050810,-151.0,0.00025846,7]
[391880059,1760949050819,-151.0,0.00025846,7]
[391880060,1760949050828,-151.0,0.00025846,7]
[391880061,1760949050838,-151.0,0.00025848,7]
[391880062,1760949050847,-151.0,0.00025848,7]
[391880063,1760949050856,-188.030672,0.00025848,7]
[391880064,1760949050865,-151.0,0.00025848,7]
[391880065,1760949050875,-151.0,0.00025848,7]
[391880066,1760949050884,-151.0,0.00025848,7]
[391880067,1760949050894,-151.0,0.00025848,7]
[391880068,1760949050903,-151.0,0.00025848,7]
[391880069,1760949050912,-151.0,0.00025848,7]
[391880070,1760949050922,-151.0,0.00025848,7]
[391880071,1760949050933,-151.0,0.00025848,7]
[391880072,1760949050942,-151.0,0.00025848,7]
[391880073,1760949050951,-151.0,0.00025848,7]
[391880074,1760949050961,-151.0,0.00025848,7]
[391880075,1760949050970,-299.408165,0.00025848,7]
[391880076,1760949050980,-151.0,0.00025848,7]
[391880077,1760949050989,-151.0,0.00025848,7]
[391880078,1760949050999,-151.0,0.00025848,7]
[391880079,1760949051009,-151.0,0.00025848,7]
[391880080,1760949051019,-151.0,0.00025848,7]
[391880081,1760949051030,-309.258701,0.00025848,7]
[391880082,1760949051040,-309.258701,0.00025848,7]
[391880083,1760949051049,-309.258701,0.00025848,7]
[391880084,1760949051058,-151.0,0.00025848,7]
[391880085,1760949051068,-309.258701,0.00025848,7]
[391880086,1760949051078,-151.0,0.00025848,7]
[391880087,1760949051087,-151.0,0.00025848,7]
[391880088,1760949051096,-151.0,0.00025848,7]
[391880089,1760949051105,-151.0,0.00025848,7]
[391880090,1760949051114,-400.517066,0.00025848,7]
[391880091,1760949051123,-400.517066,0.00025848,7]
[391880092,1760949051132,-400.517066,0.00025848,7]
[391880093,1760949051141,-400.517066,0.00025848,7]
[391880094,1760949051151,-479.884686,0.00025848,7]
[391880095,1760949051160,-151.0,0.00025848,7]
[391880096,1760949051170,-479.884686,0.00025848,7]
[391880097,1760949051181,-165.046059,0.00025848,7]
[391880098,1760949051190,-479.884686,0.00025848,7]
[391880099,1760949051200,-479.884686,0.00025848,7]
[391880100,1760949051209,-151.0,0.00025848,7]
[391880101,1760949051219,-151.0,0.00025848,7]
[391880102,1760949051228,-151.0,0.00025848,7]
[391880103,1760949051237,-151.0,0.00025848,7]
[391880104,1760949051247,-151.0,0.00025848,7]
[391880105,1760949051256,-151.0,0.00025848,7]
[391880106,1760949051266,-151.0,0.00025848,7]
[391880107,1760949051275,-151.0,0.00025848,7]
[391880108,1760949051284,-151.0,0.00025848,7]
[391880109,1760949051294,-156.985828,0.00025848,7]
[391880110,1760949051303,-156.985828,0.00025848,7]
[391880111,1760949051313,-151.0,0.00025848,7]
[391880112,1760949051322,-156.985828,0.00025848,7]
[391880113,1760949051331,-151.0,0.00025848,7]
[391880114,1760949051341,-156.985828,0.00025848,7]
[391880115,1760949051350,-287.026693,0.00025848,7]
[391880116,1760949051359,-151.0,0.00025848,7]
[391880117,1760949051369,-151.0,0.00025848,7]
[391880118,1760949051378,-463.223978,0.00025848,7]
[391880119,1760949051388,-417.059582,0.00025848,7]
[391880120,1760949051397,-463.223978,0.00025848,7]
[391880121,1760949051406,-417.059582,0.00025848,7]
[391880122,1760949051415,-463.223978,0.00025848,7]
[391880123,1760949051423,-417.059582,0.00025848,7]
[391880124,1760949051433,-463.223978,0.00025848,7]
[391880125,1760949051443,-417.059582,0.00025848,7]
[391880126,1760949051451,-151.0,0.00025848,7]
[391880127,1760949051461,-151.0,0.00025848,7]
[391880128,1760949051470,-151.0,0.00025848,7]
[391880129,1760949051479,-620.772078,0.00025848,7]
[391880130,1760949051488,-620.772078,0.00025848,7]
[391880131,1760949051497,-620.772078,0.00025848,7]
[391880132,1760949051506,-620.772078,0.00025848,7]
[391880133,1760949051516,-620.772078,0.00025848,7]
[391880134,1760949051524,-620.772078,0.00025848,7]
[391880135,1760949051534,-620.772078,0.00025848,7]
[391880136,1760949051543,-620.77207593,0.00025848,7]
[391880137,1760949051552,-151.0,0.00025848,7]
[391880138,1760949051562,-151.0,0.00025848,7]
[391880139,1760949051571,-151.0,0.00025848,7]
[391880140,1760949051580,-151.0,0.00025848,7]
[391880141,1760949051589,-151.0,0.00025848,7]
[391880142,1760949051599,-151.0,0.00025848,7]
[391880143,1760949051608,-151.0,0.00025848,7]
[391880144,1760949051617,-151.0,0.00025848,7]
[391880145,1760949051627,-151.0,0.00025848,7]
[391880146,1760949051636,-151.0,0.00025848,7]
[391880147,1760949051645,-157.341746,0.00025848,7]
[391880148,1760949051655,-151.0,0.00025852,7]
[391880149,1760949051663,-151.0,0.00025852,7]
[391880150,1760949051672,-151.0,0.00025852,7]
[391880151,1760949051682,-151.0,0.00025852,7]
[391880152,1760949051691,-151.0,0.00025852,7]
[391880153,1760949051700,-151.0,0.00025852,7]
[391880154,1760949051709,-151.0,0.00025852,7]
[391880155,1760949051719,-151.0,0.00025852,7]
[391880156,1760949051728,-151.0,0.00025852,7]
[391880157,1760949051737,-181.355164,0.00025852,7]
[391880158,1760949051746,-217.242928,0.00025852,7]
[391880159,1760949051755,-151.0,0.00025852,2]
[391880160,1760949051764,-151.0,0.00025852,2]
[391880161,1760949051774,-151.0,0.00025852,2]
[391880162,1760949051783,-151.0,0.00025852,2]
[391880163,1760949051793,-151.56637366,0.00025852,2]
[391880164,1760949051802,-198.69607341,0.00025852,2]
[391880165,1760949051811,-151.0,0.00025859,7]
[391880166,1760949051820,-151.0,0.00025859,7]
[391880167,1760949051829,-151.0,0.00025859,7]
[391880168,1760949051838,-151.0,0.00025859,7]
[391880169,1760949051847,-151.0,0.00025859,7]
[391880170,1760949051856,-151.0,0.00025859,7]
[391880171,1760949051866,-151.0,0.00025859,7]
[391880172,1760949051875,-151.0,0.00025859,7]
[391880173,1760949051884,-151.0,0.00025859,7]
[391880174,1760949051894,-152.345449,0.00025859,7]
[391880175,1760949051902,-153.662489,0.00025859,7]
[391880176,1760949051912,-151.0,0.00025859,7]
[391880177,1760949051920,-151.0,0.00025859,7]
[391880178,1760949051930,-158.048949,0.00025859,7]
[391880179,1760949051940,-151.0,0.00025859,7]
[391880180,1760949051949,-151.0,0.00025859,7]
[391880181,1760949051959,-151.0,0.00025859,7]
[391880182,1760949051968,-151.0,0.00025859,7]
[391880183,1760949051978,-309.258701,0.00025859,7]
[391880184,1760949051987,-309.258701,0.00025859,7]
[391880185,1760949051997,-309.258701,0.00025859,7]
[391880186,1760949052006,-151.0,0.00025859,7]
[391880187,1760949052015,-309.258701,0.00025859,7]
[391880188,1760949052025,-151.0,0.00025859,7]
[391880189,1760949052039,-151.0,0.00025859,7]
[391880190,1760949052048,-151.0,0.00025859,7]
[391880191,1760949052058,-151.0,0.00025859,7]
[391880192,1760949052068,-400.517066,0.00025859,7]
[391880193,1760949052079,-400.517066,0.00025859,7]
[391880194,1760949052088,-400.517066,0.00025859,7]
[391880195,1760949052098,-479.884686,0.00025859,7]
[391880196,1760949052110,-400.517066,0.00025859,7]
[391880197,1760949052119,-151.0,0.00025859,7]
[391880198,1760949052129,-479.884686,0.00025859,7]
[391880199,1760949052139,-479.884686,0.00025859,7]
[391880200,1760949052148,-479.884686,0.00025859,7]
[391880201,1760949052157,-151.0,0.00025859,7]
[391880202,1760949052167,-151.0,0.00025859,7]
[391880203,1760949052176,-151.0,0.00025859,7]
[391880204,1760949052185,-151.0,0.00025859,7]
[391880205,1760949052195,-151.0,0.00025859,7]
[391880206,1760949052204,-151.0,0.00025859,7]
[391880207,1760949052213,-151.0,0.00025859,7]
[391880208,1760949052223,-151.0,0.00025859,7]
[391880209,1760949052232,-151.0,0.00025859,7]
[391880210,1760949052242,-151.0,0.00025859,7]
[391880211,1760949052251,-151.0,0.00025859,7]
[391880212,1760949052260,-151.0,0.00025859,7]
[391880213,1760949052270,-151.0,0.00025859,7]
[391880214,1760949052279,-151.0,0.00025859,7]
[391880215,1760949052290,-156.985828,0.00025859,7]
[391880216,1760949052299,-156.985828,0.00025859,7]
[391880217,1760949052309,-156.985828,0.00025859,7]
[391880218,1760949052318,-156.985828,0.00025859,7]
[391880219,1760949052327,-151.0,0.00025859,7]
[391880220,1760949052337,-156.985828,0.00025859,7]
[391880221,1760949052347,-151.0,0.00025859,7]
[391880222,1760949052356,-156.985828,0.00025859,7]
[391880223,1760949052365,-151.0,0.00025859,7]
[391880224,1760949052374,-151.0,0.00025859,7]
[391880225,1760949052383,-156.985828,0.00025859,7]
[391880226,1760949052394,-156.985835,0.00025859,7]
[391880227,1760949052403,-151.0,0.00025859,7]
[391880228,1760949052412,-151.0,0.00025859,7]
[391880229,1760949052422,-166.321065,0.00025859,7]
[391880230,1760949052431,-463.223978,0.00025859,7]
[391880231,1760949052440,-463.223978,0.00025859,7]
[391880232,1760949052450,-417.059582,0.00025859,7]
[391880233,1760949052459,-463.223978,0.00025859,7]
[391880234,1760949052468,-417.059582,0.00025859,7]
[391880235,1760949052478,-463.223978,0.00025859,7]
[391880236,1760949052487,-417.059582,0.00025859,7]
[391880237,1760949052497,-417.059582,0.00025859,7]
[391880238,1760949052506,-463.223978,0.00025859,7]
[391880239,1760949052515,-463.223978,0.00025859,7]
[391880240,1760949052524,-417.059582,0.00025859,7]
[391880241,1760949052533,-417.059582,0.00025859,7]
[391880242,1760949052543,-463.223978,0.00025859,7]
[391880243,1760949052552,-463.223978,0.00025859,7]
[391880244,1760949052562,-417.059582,0.00025859,7]
[391880245,1760949052571,-417.059592,0.00025859,7]
[391880246,1760949052580,-151.0,0.00025859,7]
[391880247,1760949052589,-151.0,0.00025859,7]
[391880248,1760949052599,-500.0,0.00025861,2]
[391880249,1760949052608,-500.0,0.00025861,2]
[391880250,1760949052617,-500.0,0.00025861,2]
[391880251,1760949052627,-500.0,0.00025862,2]
[391880252,1760949052636,-153.581276,0.00025862,7]
[391880253,1760949052646,-151.0,0.00025862,7]
[391880254,1760949052655,-151.0,0.00025862,7]
[391880255,1760949052664,-151.90501,0.00025862,7]
[391880256,1760949052674,-152.547343,0.00025862,7]
[391880257,1760949052684,-151.0,0.00025863,7]
[391880258,1760949052694,-179.739359,0.00025863,7]
[391880259,1760949052703,-151.0,0.00025863,7]
[391880260,1760949052713,-151.0,0.00025863,7]
[391880261,1760949052723,-151.0,0.00025863,7]
[391880262,1760949052732,-151.0,0.00025863,7]
[391880263,1760949052741,-151.0,0.00025863,7]
[391880264,1760949052751,-184.628592,0.00025863,7]
[391880265,1760949052760,-151.0,0.00025863,7]
[391880266,1760949052769,-152.013348,0.00025863,7]
[391880267,1760949052778,-155.166118,0.00025863,7]
[391880268,1760949052788,-151.0,0.00025863,7]
[391880269,1760949052797,-151.0,0.00025863,7]
[391880270,1760949052806,-151.0,0.00025863,7]
[391880271,1760949052815,-151.0,0.00025863,7]
[391880272,1760949052824,-238.344391,0.00025863,7]
[391880273,1760949052834,-151.0,0.00025863,7]
[391880274,1760949052843,-151.0,0.00025863,7]
[391880275,1760949052853,-151.0,0.00025863,7]
[391880276,1760949052863,-151.0,0.00025863,7]
[391880277,1760949052872,-309.258701,0.00025863,7]
[391880278,1760949052881,-309.258701,0.00025863,7]
[391880279,1760949052891,-309.258701,0.00025863,7]
[391880280,1760949052900,-309.258701,0.00025863,7]
[391880281,1760949052910,-309.258701,0.00025863,7]
[391880282,1760949052920,-309.258701,0.00025863,7]
[391880283,1760949052930,-151.0,0.00025863,7]
[391880284,1760949052940,-151.0,0.00025863,7]
[391880285,1760949052949,-309.258701,0.00025863,7]
[391880286,1760949052959,-309.258702,0.00025863,7]
[391880287,1760949052968,-151.0,0.00025863,7]
[391880288,1760949052977,-151.0,0.00025863,7]
[391880289,1760949052987,-151.0,0.00025863,7]
[391880290,1760949052996,-151.0,0.00025863,7]
[391880291,1760949053006,-263.932839,0.00025863,7]
[391880292,1760949053016,-151.0,0.00025863,7]
[391880293,1760949053133,-158.949249,0.00025863,7]
[391880294,1760949053143,-400.517066,0.00025863,7]
[391880295,1760949053152,-400.517066,0.00025863,7]
[391880296,1760949053162,-400.517066,0.00025863,7]
[391880297,1760949053171,-400.517066,0.00025863,7]
[391880298,1760949053180,-400.517066,0.00025863,7]
[391880299,1760949053190,-400.517066,0.00025863,7]
[391880300,1760949053200,-479.884686,0.00025863,7]
[391880301,1760949053209,-400.517066,0.00025863,7]
[391880302,1760949053219,-479.884686,0.00025863,7]
[391880303,1760949053228,-151.0,0.00025863,7]
[391880304,1760949053237,-400.51706,0.00025863,7]
[391880305,1760949053247,-151.0,0.00025863,7]
[391880306,1760949053256,-479.884686,0.00025863,7]
[391880307,1760949053265,-479.884686,0.00025863,7]
[391880308,1760949053275,-479.884686,0.00025863,7]
[391880309,1760949053285,-479.884686,0.00025863,7]
[391880310,1760949053294,-479.884686,0.00025863,7]
[391880311,1760949053305,-479.884679,0.00025863,7]
[391880312,1760949053315,-151.0,0.00025863,7]
[391880313,1760949053325,-151.0,0.00025863,7]
[391880314,1760949053334,-151.0,0.00025863,7]
[391880315,1760949053343,-151.0,0.00025863,7]
[391880316,1760949053353,-500.0,0.00025872,2]
[391880317,1760949053362,-500.0,0.00025872,2]
[391880318,1760949053372,-500.0,0.00025872,2]
[391880319,1760949053382,-500.0,0.00025872,2]
[391880320,1760949053393,-500.0,0.00025873,2]
[391880321,1760949053403,-500.0,0.00025873,2]
[391880322,1760949053412,-500.0,0.00025873,2]
[391880323,1760949053422,-151.0,0.00025873,7]
[391880324,1760949053432,-270.179257,0.00025873,7]
[391880325,1760949053441,-500.0,0.00025873,2]
[391880326,1760949053451,-151.0,0.00025873,7]
[391880327,1760949053461,-151.0,0.00025873,7]
[391880328,1760949053471,-151.0,0.00025873,7]
[391880329,1760949053482,-151.0,0.00025873,7]
[391880330,1760949053492,-157.181817,0.00025873,7]
[391880331,1760949053501,-151.0,0.00025873,7]
[391880332,1760949053511,-151.0,0.00025873,7]
[391880333,1760949053520,-151.806846,0.00025873,7]
[391880334,1760949053530,-151.909778,0.00025873,7]
[391880335,1760949053539,-151.0,0.00025873,7]
[391880336,1760949053549,-151.0,0.00025873,7]
[391880337,1760949053558,-151.0,0.00025873,7]
[391880338,1760949053568,-151.0,0.00025873,7]
[391880339,1760949053578,-151.0,0.00025873,7]
[391880340,1760949053587,-151.0,0.00025873,7]
[391880341,1760949053597,-151.0,0.00025873,7]
[391880342,1760949053607,-151.0,0.00025873,7]
[391880343,1760949053617,-473.78928526,0.00025874,2]
[391880344,1760949053627,-151.0,0.00025875,7]
[391880345,1760949053637,-588.23134462,0.00025877,2]
[391880346,1760949053647,-500.0,0.00025878,2]
[391880347,1760949053656,-500.0,0.00025878,2]
[391880348,1760949053666,-522.83893506,0.00025893,2]
[391880349,1760949053676,-736.0,0.00025894,3]
[391880350,1760949053686,-361.0,0.00025894,3]
[391880351,1760949053695,-160.0,0.00025898,2]
[391880352,1760949053705,-151.0,0.000259,13]
[391880353,1760949053714,-151.0,0.000259,10]
[391880354,1760949053723,-151.0,0.000259,14]
[391880355,1760949053733,-151.0,0.000259,11]
[391880356,1760949053742,-151.0,0.000259,11]
[391880357,1760949053751,-151.0,0.000259,16]
[391880358,1760949053760,-518.878395,0.000259,2]
[391880359,1760949053770,-447.001279,0.000259,2]
[391880360,1760949053779,-151.0,0.00025907,2]
[391880361,1760949053788,-510.71064386,0.00025932,2]
[391880362,1760949053797,-736.0,0.00025948,3]
[391880363,1760949053807,-198.0,0.00025962,2]
[391880364,1760949053816,-217.5,0.00025963,2]
[391880365,1760949053825,-1500.0,0.00025968,2]